fUST/lending_fUST_20251115
["ID","MTS","AMOUNT","RATE_DAILY","PERIOD"]
[394042826,1763215855358,-787.9,0.00059,14]
[394042827,1763215855367,-500.0,0.00059068,110]
[394042828,1763215855376,-443.812283,0.0005912,2]
[394042829,1763215855386,-199.0,0.00059178,41]
[394042830,1763215855395,-541.66,0.00059178,120]
[394042831,1763215855405,-500.0,0.00059178,120]
[394042832,1763215855414,-500.0,0.00059178,120]
[394042833,1763215855424,-1197.87,0.00059178,120]
[394042834,1763215855434,-166730.5186,0.000592,120]
[394042835,1763215855443,-541.66,0.00059452,120]
[394042836,1763215855452,-500.0,0.00059452,120]
[394042837,1763215855462,-500.0,0.00059452,120]
[394042838,1763215855472,-1197.87,0.00059452,120]
[394042839,1763215855481,-153.0,0.000595,120]
[394042840,1763215855490,-541.66,0.00059726,120]
[394042841,1763215855499,-500.0,0.00059726,120]
[394042842,1763215855509,-500.0,0.00059726,120]
[394042843,1763215855518,-1197.87,0.00059726,120]
[394042844,1763215855527,-541.66,0.00059999,120]
[394042845,1763215855537,-500.0,0.00059999,120]
[394042846,1763215855546,-500.0,0.00059999,120]
[394042847,1763215855556,-1197.87,0.00059999,120]
[394042848,1763215855567,-1000.0,0.0006,120]
[394042849,1763215855577,-10009.000134,0.0006,120]
[394042850,1763215855586,-541.66,0.00060273,120]
[394042851,1763215855595,-209.17692708,0.00060273,120]
[394042852,1763215855606,-991.10992182,0.00060273,120]
[394042853,1763215855616,-1197.87,0.00060273,120]
[394042854,1763215855625,-1345.81,0.00060327,2]
[394042855,1763215855636,-199.0,0.00060547,42]
[394042856,1763215855645,-541.66,0.00060547,120]
[394042857,1763215855656,-1197.87,0.00060547,120]
[394042858,1763215855666,-1000.1148984,0.000607,120]
[394042859,1763215855675,-4683.84,0.000607,14]
[394042860,1763215855685,-541.66,0.00060821,120]
[394042861,1763215855694,-1197.87,0.00060821,120]
[394042862,1763215855704,-541.82,0.00061095,120]
[394042863,1763215855712,-1197.99000021,0.00061095,120]
[394042864,1763215855722,-500.0,0.00061135,120]
[394042865,1763215855732,-153.0,0.000612,120]
[394042866,1763215855741,-519.1,0.00061613,30]
[394042867,1763215855750,-500.0,0.00061808,120]
[394042868,1763215855759,-194.72792766,0.00061916,43]
[394042869,1763215855768,-199.0,0.00061917,43]
[394042870,1763215855777,-5000.0,0.00062511,30]
[394042871,1763215855787,-153.0,0.00063,120]
[394042872,1763215855796,-200.0,0.00063022,120]
[394042873,1763215855805,-313.0,0.000631,30]
[394042874,1763215855814,-342.97145957,0.00063286,44]
[394042875,1763215855823,-187.78006525,0.00063286,44]
[394042876,1763215855832,-199.0,0.00063287,44]
[394042877,1763215855842,-4683.85,0.000637,14]
[394042878,1763215855851,-1000.0,0.00064064,120]
[394042879,1763215855861,-492.0,0.00064064,120]
[394042880,1763215855870,-787.9,0.000642,14]
[394042881,1763215855879,-851834.48019083,0.00064444,30]
[394042882,1763215855920,-1103.29051846,0.00064444,30]
[394042883,1763215855931,-11613.3278408,0.00064444,30]
[394042884,1763215856000,-317.51354204,0.00064444,30]
[394042885,1763215856011,-5298.60222251,0.00064444,30]
[394042886,1763215856022,-256.2,0.00064444,30]
[394042887,1763215856042,-1628.85141834,0.00029613,2]
[394042888,1763215982079,150.83,5e-05,2]
[394042889,1763215982441,150.83,5.4e-05,2]
[394042890,1763215982779,150.83,5.7e-05,2]
[394042891,1763215983145,150.83,6.1e-05,2]
[394042892,1763215983577,150.83,6.4e-05,2]
[394042893,1763215983933,150.83,6.8e-05,2]
[394042894,1763215984281,150.83,7.1e-05,2]
[394042895,1763215984619,150.83,7.5e-05,2]
[394042896,1763215984953,150.83,7.8e-05,2]
[394042897,1763215985357,150.83,8.2e-05,2]
[394042898,1763215985765,150.83,8.5e-05,2]
[394042899,1763215986064,150.83,8.9e-05,2]
[394042900,1763215986462,150.83,9.2e-05,2]
[394042901,1763215986817,150.83,9.6e-05,2]
[394042902,1763215987159,150.83,9.9e-05,2]
[394042903,1763215987541,150.83,0.000103,2]
[394042904,1763215987877,150.83,0.000106,2]
[394042905,1763215988208,150.83,0.00011,2]
[394042906,1763215988537,150.83,0.000113,2]
[394042907,1763215988879,150.83,0.000117,2]
[394042908,1763215989225,150.83,0.00012,2]
[394042909,1763216041834,152.16,5e-05,2]
[394042910,1763216042185,152.16,5.4e-05,2]
[394042911,1763216042479,152.16,5.7e-05,2]
[394042912,1763216042782,152.16,6.1e-05,2]
[394042913,1763216043100,152.16,6.5e-05,2]
[394042914,1763216043427,152.16,6.8e-05,2]
[394042915,1763216043827,152.16,7.2e-05,2]
[394042916,1763216044314,152.16,7.6e-05,2]
[394042917,1763216044636,152.16,7.9e-05,2]
[394042918,1763216045060,152.16,8.3e-05,2]
[394042919,1763216045530,152.16,8.7e-05,2]
[394042920,1763216045767,152.16,9.1e-05,2]
[394042921,1763216046065,152.16,9.4e-05,2]
[394042922,1763216046449,152.16,9.8e-05,2]
[394042923,1763216046766,152.16,0.000102,2]
[394042924,1763216047048,152.16,0.000105,2]
[394042925,1763216047395,152.16,0.000109,2]
[394042926,1763216047721,152.16,0.000113,2]
[394042927,1763216048237,152.16,0.000116,2]
[394042928,1763216048534,152.16,0.00012,2]
[394042929,1763216101765,153.04,5e-05,2]
[394042930,1763216102033,153.04,5.4e-05,2]
[394042931,1763216102345,153.04,5.7e-05,2]
[394042932,1763216102636,153.04,6.1e-05,2]
[394042933,1763216102974,153.04,6.5e-05,2]
[394042934,1763216103282,153.04,6.8e-05,2]
[394042935,1763216103573,153.04,7.2e-05,2]
[394042936,1763216103898,153.04,7.6e-05,2]
[394042937,1763216104464,153.04,7.9e-05,2]
[394042938,1763216104964,153.04,8.3e-05,2]
[394042939,1763216105296,153.04,8.7e-05,2]
[394042940,1763216105598,153.04,9.1e-05,2]
[394042941,1763216105888,153.04,9.4e-05,2]
[394042942,1763216106162,153.04,9.8e-05,2]
[394042943,1763216106443,153.04,0.000102,2]
[394042944,1763216106749,153.04,0.000105,2]
[394042945,1763216107103,153.04,0.000109,2]
[394042946,1763216107446,153.04,0.000113,2]
[394042947,1763216107743,153.04,0.000116,2]
[394042948,1763216108097,153.04,0.00012,2]
[394042949,1763216162000,153.04,5e-05,2]
[394042950,1763216162300,153.04,5.4e-05,2]
[394042951,1763216162726,153.04,5.7e-05,2]
[394042952,1763216163174,153.04,6.1e-05,2]
[394042953,1763216163382,153.04,6.5e-05,2]
[394042954,1763216163685,153.04,6.8e-05,2]
[394042955,1763216164004,153.04,7.2e-05,2]
[394042956,1763216164310,153.04,7.6e-05,2]
[394042957,1763216164614,153.04,7.9e-05,2]
[394042958,1763216164990,153.04,8.3e-05,2]
[394042959,1763216165327,153.04,8.7e-05,2]
[394042960,1763216165759,153.04,9.1e-05,2]
[394042961,1763216166042,153.04,9.4e-05,2]
[394042962,1763216166323,153.04,9.8e-05,2]
[394042963,1763216166659,153.04,0.000102,2]
[394042964,1763216166938,153.04,0.000105,2]
[394042965,1763216167252,153.04,0.000109,2]
[394042966,1763216167684,153.04,0.000113,2]
[394042967,1763216168248,153.04,0.000116,2]
[394042968,1763216168546,153.04,0.00012,2]
[394042969,1763216221700,153.03,5e-05,2]
[394042970,1763216222028,153.03,5.4e-05,2]
[394042971,1763216222353,153.03,5.9e-05,2]
[394042972,1763216223001,153.03,6.3e-05,2]
[394042973,1763216223300,153.03,6.8e-05,2]
[394042974,1763216223706,153.03,7.2e-05,2]
[394042975,1763216224007,153.03,7.6e-05,2]
[394042976,1763216224307,153.03,8.1e-05,2]
[394042977,1763216224690,153.03,8.5e-05,2]
[394042978,1763216224973,153.03,8.9e-05,2]
[394042979,1763216225273,153.03,9.4e-05,2]
[394042980,1763216225584,153.03,9.8e-05,2]
[394042981,1763216225896,153.03,0.000103,2]
[394042982,1763216226200,153.03,0.000107,2]
[394042983,1763216226493,153.03,0.000111,2]
[394042984,1763216226782,153.03,0.000116,2]
[394042985,1763216227080,153.03,0.00012,2]
[394043018,1763216854181,-227.745,0.00029024,2]
[394043030,1763216960124,-602.77216134,0.000225,2]
[394043031,1763216974177,-423.52311703,0.000225,2]
[394043032,1763216974199,-4909.94886301,0.00023,2]
[394043033,1763217002007,161.37,5e-05,2]
[394043067,1763217031726,-1415.15579256,0.0002277,2]
[394043069,1763217031738,-779.99660122,0.0002277,2]
[394043150,1763217043199,-315.98676429,0.0002277,2]
[394043180,1763217062248,50.41,5e-05,2]
[394043181,1763217062275,110.95,5e-05,2]
[394043182,1763217098213,10000.0,0.00021,10]
[394043183,1763217105891,10000.0,0.00021,10]
[394043184,1763217115303,10000.0,0.00021,10]
[394043185,1763217182043,161.35,5e-05,2]
[394043186,1763217182315,161.35,0.00012,2]
[394043188,1763217268135,397.0,0.00032877,120]
[394043189,1763217557562,1001.0,0.00018,2]
[394043191,1763218064878,203.38,0.0002,21]
[394043193,1763218142447,150.22,5e-05,2]
[394043194,1763218142782,150.22,5.6e-05,2]
[394043195,1763218143183,150.22,6.2e-05,2]
[394043196,1763218143517,150.22,6.8e-05,2]
[394043197,1763218143840,150.22,7.3e-05,2]
[394043198,1763218144289,150.22,7.9e-05,2]
[394043199,1763218144732,150.22,8.5e-05,2]
[394043200,1763218145091,150.22,9.1e-05,2]
[394043201,1763218145137,-4071.0507694,0.000209,2]
[394043202,1763218145965,150.22,9.7e-05,2]
[394043203,1763218146309,150.22,0.000103,2]
[394043204,1763218146623,150.22,0.000108,2]
[394043205,1763218146942,150.22,0.000114,2]
[394043206,1763218147368,150.22,0.00012,2]
[394043207,1763218162142,-928.9492306,0.000209,2]
[394043208,1763218162162,-1200.0,0.00020998,2]
[394043209,1763218162182,-300.0,0.00020998,2]
[394043210,1763218162200,-2660.57874369,0.00020999,2]
[394043212,1763218202474,151.77,5e-05,2]
[394043213,1763218202864,151.77,5.6e-05,2]
[394043214,1763218203330,151.77,6.2e-05,2]
[394043215,1763218203718,151.77,6.8e-05,2]
[394043216,1763218204048,151.77,7.3e-05,2]
[394043217,1763218205046,151.77,7.9e-05,2]
[394043218,1763218205397,151.77,8.5e-05,2]
[394043219,1763218205715,151.77,9.1e-05,2]
[394043220,1763218206095,151.77,9.7e-05,2]
[394043221,1763218206451,151.77,0.000103,2]
[394043222,1763218206749,151.77,0.000108,2]
[394043223,1763218207088,151.77,0.000114,2]
[394043224,1763218207392,151.77,0.00012,2]
[394043238,1763218231912,-1784.38194848,0.00020789,2]
[394043257,1763218237795,-451.04597274,0.00020789,2]
[394043258,1763218237856,-1000.9999859,0.00020789,2]
[394043259,1763218237870,-1496.29641023,0.00020789,2]
[394043260,1763218237880,-42.87736226,0.00020894,2]
[394043261,1763218237893,-107.12263774,0.00020894,2]
[394043262,1763218237903,-1949.87813113,0.00020999,2]
[394043267,1763218239999,-414.54312518,0.00020999,2]
[394043268,1763218240010,-1200.0,0.00021109,2]
[394043269,1763218240021,-300.0,0.0002111,2]
[394043270,1763218240031,-300.0,0.0002111,2]
[394043271,1763218240041,-300.0,0.0002111,2]
[394043272,1763218240052,-233.0,0.0002111,2]
[394043273,1763218240063,-5000.0,0.00021111,2]
[394043274,1763218240074,-5000.0,0.00021952,2]
[394043275,1763218240086,-457.429492,0.00022643,2]
[394043276,1763218240096,-434.07709848,0.0002283,2]
[394043277,1763218240108,-488.0,0.00022841,2]
[394043278,1763218240119,-177.0,0.00022894,2]
[394043279,1763218240129,-50000.0,0.000229,2]
[394043280,1763218240143,-193.07,0.0002293,10]
[394043281,1763218240154,-500.0,0.00022938,2]
[394043282,1763218240165,-500.0,0.00022938,2]
[394043283,1763218240175,-500.0,0.00022938,2]
[394043284,1763218240186,-500.0,0.00022938,2]
[394043285,1763218240196,-500.0,0.00022938,2]
[394043286,1763218240209,-500.0,0.00022939,2]
[394043287,1763218240220,-500.0,0.00022939,2]
[394043288,1763218240230,-500.0,0.00022939,2]
[394043289,1763218240241,-500.0,0.00022939,2]
[394043290,1763218240252,-500.0,0.00022939,2]
[394043291,1763218240262,-500.0,0.00022939,2]
[394043292,1763218240272,-500.0,0.00022939,2]
[394043293,1763218240282,-500.0,0.00022939,2]
[394043294,1763218240292,-500.0,0.00022939,2]
[394043295,1763218240302,-500.0,0.00022939,2]
[394043296,1763218240312,-500.0,0.00022939,2]
[394043297,1763218240321,-451.80256698,0.00022939,2]
[394043298,1763218240333,-500.0,0.00022939,2]
[394043299,1763218240349,-500.0,0.00022939,2]
[394043300,1763218240361,-500.0,0.00022939,2]
[394043301,1763218240371,-500.0,0.00022939,2]
[394043302,1763218240381,-500.0,0.00022939,2]
[394043303,1763218240392,-500.0,0.00022939,2]
[394043304,1763218240406,-500.0,0.00022939,2]
[394043305,1763218240417,-500.0,0.00022939,2]
[394043306,1763218240428,-500.0,0.00022939,2]
[394043307,1763218240438,-57.63278316,0.00022939,2]
[394043315,1763218243328,-442.36721684,0.00022939,2]
[394043316,1763218243342,-64.97466508,0.00022939,2]
[394043317,1763218243356,-419.18467264,0.00022939,2]
[394043318,1763218243369,-15.84066228,0.00022939,2]
[394043319,1763218243380,-1030.48615438,0.0002294,2]
[394043320,1763218243395,-4458.80197338,0.0002294,2]
[394043322,1763218261988,151.1,5e-05,2]
[394043323,1763218262322,151.1,5.6e-05,2]
[394043324,1763218262716,151.1,6.2e-05,2]
[394043325,1763218263027,151.1,6.8e-05,2]
[394043326,1763218263428,151.1,7.3e-05,2]
[394043327,1763218263775,151.1,7.9e-05,2]
[394043328,1763218264108,151.1,8.5e-05,2]
[394043329,1763218264427,151.1,9.1e-05,2]
[394043330,1763218264739,151.1,9.7e-05,2]
[394043331,1763218265070,151.1,0.000103,2]
[394043332,1763218265451,151.1,0.000108,2]
[394043333,1763218265835,151.1,0.000114,2]
[394043334,1763218266185,151.1,0.00012,2]
[394043335,1763218322212,183.09,5e-05,2]
[394043336,1763218322591,183.09,7.3e-05,2]
[394043337,1763218323065,183.09,9.7e-05,2]
[394043339,1763218382096,183.07,5e-05,2]
[394043340,1763218494463,165.0,0.000328,120]
[394043342,1763218817423,3377.5,0.000199,2]
[394043343,1763218817447,10000.01,0.000199,2]
[394043344,1763218817468,10000.01,0.000199,2]
[394043345,1763218817490,10000.01,0.000199,2]
[394043346,1763218817514,10000.01,0.000199,2]
[394043347,1763218817539,6422.45,0.000199,2]
[394043348,1763219140109,1025.35932176,0.00019996,2]
[394043349,1763219188325,10000.0,0.0003287,120]
[394043358,1763219197954,10000.0,0.0003287,120]
[394043370,1763219212095,10000.0,0.0003287,120]
[394043371,1763219221807,150.1,5e-05,2]
[394043372,1763219222202,150.1,5.9e-05,2]
[394043373,1763219222508,150.1,6.8e-05,2]
[394043374,1763219222807,150.1,7.6e-05,2]
[394043375,1763219223192,150.1,8.5e-05,2]
[394043376,1763219223535,150.1,9.4e-05,2]
[394043377,1763219223882,150.1,0.000103,2]
[394043378,1763219224218,150.1,0.000111,2]
[394043379,1763219224421,10000.0,0.0003287,120]
[394043380,1763219224532,150.1,0.00012,2]
[394043381,1763219236128,-153.57522009,0.0002039,2]
[394043385,1763219282012,150.1,5e-05,2]
[394043386,1763219282352,150.1,5.9e-05,2]
[394043387,1763219282711,150.1,6.8e-05,2]
[394043388,1763219283065,150.1,7.6e-05,2]
[394043389,1763219283398,150.1,8.5e-05,2]
[394043390,1763219283728,150.1,9.4e-05,2]
[394043391,1763219284066,150.1,0.000103,2]
[394043392,1763219284423,150.1,0.000111,2]
[394043393,1763219284758,0.50067824,0.00012,2]
[394043394,1763219284785,149.59932176,0.00012,2]
[394043395,1763219318330,5000.0,0.00019996,2]
[394043396,1763219342179,150.99,5e-05,2]
[394043397,1763219342524,150.99,5.2e-05,2]
[394043398,1763219342947,150.99,5.3e-05,2]
[394043399,1763219343324,150.99,5.5e-05,2]
[394043400,1763219343631,150.99,5.6e-05,2]
[394043401,1763219343972,150.99,5.8e-05,2]
[394043402,1763219344404,150.99,6e-05,2]
[394043403,1763219344694,150.99,6.1e-05,2]
[394043404,1763219345038,150.99,6.3e-05,2]
[394043405,1763219345360,150.99,6.4e-05,2]
[394043406,1763219345697,150.99,6.6e-05,2]
[394043407,1763219346028,150.99,6.8e-05,2]
[394043408,1763219346400,150.99,6.9e-05,2]
[394043409,1763219346859,150.99,7.1e-05,2]
[394043410,1763219347115,-311.1632712,0.00020288,2]
[394043411,1763219347229,150.99,7.2e-05,2]
[394043412,1763219347565,150.99,7.4e-05,2]
[394043413,1763219347888,150.99,7.5e-05,2]
[394043414,1763219348213,150.99,7.7e-05,2]
[394043415,1763219348557,150.99,7.9e-05,2]
[394043416,1763219348871,150.99,8e-05,2]
[394043417,1763219349191,150.99,8.2e-05,2]
[394043418,1763219349546,150.99,8.3e-05,2]
[394043419,1763219349889,150.99,8.5e-05,2]
[394043420,1763219350211,150.99,8.7e-05,2]
[394043421,1763219350534,150.99,8.8e-05,2]
[394043422,1763219350841,150.99,9e-05,2]
[394043423,1763219351163,150.99,9.1e-05,2]
[394043424,1763219351486,150.99,9.3e-05,2]
[394043425,1763219352185,150.99,9.5e-05,2]
[394043426,1763219352692,150.99,9.6e-05,2]
[394043427,1763219353011,150.99,9.8e-05,2]
[394043428,1763219353577,150.99,9.9e-05,2]
[394043429,1763219353999,18.73067824,0.000101,2]
[394043430,1763219354027,132.25932176,0.000101,2]
[394043431,1763219354368,150.99,0.000103,2]
[394043432,1763219354820,150.99,0.000104,2]
[394043433,1763219355144,150.99,0.000106,2]
[394043434,1763219355493,150.99,0.000107,2]
[394043435,1763219355845,150.99,0.000109,2]
[394043436,1763219356154,150.99,0.00011,2]
[394043437,1763219356473,150.99,0.000112,2]
[394043438,1763219356792,150.99,0.000114,2]
[394043439,1763219357117,150.99,0.000115,2]
[394043440,1763219357483,150.99,0.000117,2]
[394043441,1763219357798,150.99,0.000118,2]
[394043442,1763219358167,150.99,0.00012,2]
[394043453,1763219402498,151.14,5e-05,2]
[394043454,1763219402820,151.14,5.2e-05,2]
[394043455,1763219403198,151.14,5.3e-05,2]
[394043456,1763219403490,151.14,5.5e-05,2]
[394043457,1763219403800,151.14,5.7e-05,2]
[394043458,1763219404123,151.14,5.8e-05,2]
[394043459,1763219404460,151.14,6e-05,2]
[394043460,1763219404882,151.14,6.1e-05,2]
[394043461,1763219405219,151.14,6.3e-05,2]
[394043462,1763219405570,151.14,6.5e-05,2]
[394043463,1763219405908,151.14,6.6e-05,2]
[394043464,1763219406230,151.14,6.8e-05,2]
[394043465,1763219406526,151.14,7e-05,2]
[394043466,1763219406903,151.14,7.1e-05,2]
[394043467,1763219407241,151.14,7.3e-05,2]
[394043468,1763219407716,151.14,7.4e-05,2]
[394043469,1763219407893,151.14,7.6e-05,2]
[394043470,1763219408199,151.14,7.8e-05,2]
[394043471,1763219408619,151.14,7.9e-05,2]
[394043472,1763219408934,151.14,8.1e-05,2]
[394043473,1763219410667,151.14,8.3e-05,2]
[394043474,1763219410983,151.14,8.4e-05,2]
[394043475,1763219411306,151.14,8.6e-05,2]
[394043476,1763219412236,151.14,8.7e-05,2]
[394043477,1763219412577,151.14,8.9e-05,2]
[394043478,1763219412906,151.14,9.1e-05,2]
[394043479,1763219413286,151.14,9.2e-05,2]
[394043480,1763219413625,151.14,9.4e-05,2]
[394043481,1763219413964,151.14,9.6e-05,2]
[394043482,1763219414348,151.14,9.7e-05,2]
[394043483,1763219414715,151.14,9.9e-05,2]
[394043484,1763219415027,151.14,0.0001,2]
[394043485,1763219415330,151.14,0.000102,2]
[394043486,1763219415646,151.14,0.000104,2]
[394043487,1763219415934,151.14,0.000105,2]
[394043488,1763219416290,151.14,0.000107,2]
[394043489,1763219416565,151.14,0.000109,2]
[394043490,1763219416897,151.14,0.00011,2]
[394043491,1763219417616,151.14,0.000112,2]
[394043492,1763219417952,151.14,0.000113,2]
[394043493,1763219418268,151.14,0.000115,2]
[394043494,1763219418567,151.14,0.000117,2]
[394043495,1763219418863,151.14,0.000118,2]
[394043496,1763219419171,151.14,0.00012,2]
[394043532,1763219432230,-4688.8367288,0.00020288,2]
[394043534,1763219432240,-150.0,0.00020493,2]
[394043535,1763219432250,-300.0,0.00021877,2]
[394043537,1763219432259,-500.0,0.00021878,2]
[394043539,1763219432269,-500.0,0.00021878,2]
[394043540,1763219432279,-507.87,0.00021878,2]
[394043541,1763219432288,-500.0,0.00021878,2]
[394043542,1763219432297,-500.0,0.00021878,2]
[394043543,1763219432307,-500.0,0.00021878,2]
[394043544,1763219432316,-500.0,0.00021878,2]
[394043545,1763219432326,-500.0,0.00021878,2]
[394043546,1763219432335,-500.0,0.00021878,2]
[394043547,1763219432344,-500.0,0.00021878,2]
[394043548,1763219432353,-500.0,0.00021878,2]
[394043549,1763219432363,-412.95571517,0.00021878,2]
[394043550,1763219432371,-500.0,0.00021878,2]
[394043551,1763219432380,-500.0,0.00021878,2]
[394043552,1763219432390,-323.03009228,0.00021878,2]
[394043553,1763219432399,-500.0,0.00021878,2]
[394043554,1763219432408,-500.0,0.00021878,2]
[394043555,1763219432417,-500.0,0.00021878,2]
[394043556,1763219432426,-595.1802567,0.00021878,2]
[394043557,1763219432436,-500.0,0.00021878,2]
[394043558,1763219432445,-350.49908687,0.00021878,2]
[394043559,1763219432454,-500.0,0.00021878,2]
[394043560,1763219432463,-500.0,0.00021878,2]
[394043561,1763219432474,-500.0,0.00021878,2]
[394043562,1763219432483,-500.0,0.00021878,2]
[394043563,1763219432503,-500.0,0.00021878,2]
[394043564,1763219432513,-500.0,0.00021878,2]
[394043565,1763219432523,-500.0,0.00021878,2]
[394043566,1763219432532,-500.0,0.00021878,2]
[394043567,1763219432542,-500.0,0.00021878,2]
[394043568,1763219432552,-500.0,0.00021878,2]
[394043569,1763219432562,-500.0,0.00021878,2]
[394043570,1763219432571,-500.0,0.00021878,2]
[394043571,1763219432581,-500.0,0.00021878,2]
[394043572,1763219432590,-500.0,0.00021878,2]
[394043573,1763219432600,-500.0,0.00021878,2]
[394043574,1763219432609,-500.0,0.00021878,2]
[394043575,1763219432619,-500.0,0.00021878,2]
[394043576,1763219432630,-500.0,0.00021878,2]
[394043577,1763219432640,-500.0,0.00021878,2]
[394043578,1763219432649,-500.0,0.00021878,2]
[394043579,1763219432659,-500.0,0.00021878,2]
[394043580,1763219432669,-321.86160798,0.00021878,2]
[394043581,1763219432679,-500.0,0.00021878,2]
[394043582,1763219432689,-500.0,0.00021878,2]
[394043583,1763219432699,-500.0,0.00021878,2]
[394043584,1763219432708,-1029.35184307,0.00021879,2]
[394043585,1763219432718,-389.95154929,0.00021879,2]
[394043586,1763219432727,-500.0,0.00021879,2]
[394043587,1763219432737,-500.0,0.00021879,2]
[394043588,1763219432751,-507.87,0.00021879,2]
[394043589,1763219432761,-507.87,0.00021879,2]
[394043590,1763219432771,-1387.68447076,0.0002188,2]
[394043595,1763219438001,-353.01172191,0.00020393,3]
[394043596,1763219438011,-9309.75357954,0.0002188,2]
[394043597,1763219438063,-517.42876019,0.0002188,2]
[394043598,1763219438076,-509.70119414,0.0002188,2]
[394043599,1763219438121,-17.06391334,0.0002188,2]
[394043631,1763219440220,-615.08873358,0.0002188,2]
[394043638,1763219440287,-890.80323467,0.0002188,2]
[394043639,1763219440299,-2403.27469285,0.0002188,2]
[394043644,1763219443528,-3000.0,0.00021,2]
[394043645,1763219443538,-42585.27629633,0.0002188,2]
[394043646,1763219443547,-500.0,0.00021995,2]
[394043647,1763219443557,-507.87,0.00021995,2]
[394043648,1763219443566,-983.89,0.00022,2]
[394043649,1763219443576,-1964.05512592,0.00022387,2]
[394043650,1763219443585,-177.0,0.00022493,2]
[394043651,1763219443595,-1964.05512593,0.00022606,2]
[394043652,1763219443605,-443.2315309,0.00022634,2]
[394043653,1763219443615,-154.8450864,0.0002277,2]
[394043654,1763219443624,-160.89,0.0002293,10]
[394043655,1763219443634,-804.47,0.0002293,10]
[394043656,1763219443643,-500.0,0.00022939,2]
[394043657,1763219443652,-507.87,0.00022939,2]
[394043658,1763219443661,-12737.18764384,0.0002294,2]
[394043659,1763219443670,-443.6211524,0.00023,2]
[394043660,1763219443679,-2431.1078562,0.00023265,2]
[394043661,1763219443688,-287.21197972,0.0002346,2]
[394043662,1763219443697,-500.0,0.00023485,2]
[394043663,1763219443705,-502.06072498,0.00023637,2]
[394043664,1763219443715,-500.0,0.00023641,2]
[394043665,1763219443724,-500.0,0.00023688,2]
[394043666,1763219443733,-420.0,0.00023776,2]
[394043667,1763219443742,-229.78066075,0.00023779,2]
[394043668,1763219443755,-504.37921029,0.00023796,2]
[394043669,1763219443764,-433.80988382,0.00023837,2]
[394043670,1763219443773,-689.92628076,0.00024,4]
[394043671,1763219443783,-500.0,0.00024141,2]
[394043672,1763219443792,-500.0,0.00024141,2]
[394043673,1763219443802,-507.87,0.00024141,2]
[394043674,1763219443811,-507.87,0.00024141,2]
[394043675,1763219443821,-43273.60268384,0.00024142,2]